{"text_format":"1","workbook":"xlsx","n_sheets":3,"sheets":["SマニR仕様書","部品表","構成部品表"],"not_rendered":{"charts":0,"images":0,"macros":1,"external_links":1,"defined_names":63,"comments":0,"pivot_tables":0},"unopened":[],"bounds":{"document_bytes":16777216,"sheet_cells":100000,"rows_first":2000,"rows_last":500,"rows_between":2000,"halvings":0,"cell_chars":16384,"cell_head_chars":4096},"cells_cut":0,"cells_raw":0,"read":"whole","date_system":"1900"}

{"sheet":"SマニR仕様書","index":0,"n_rows":163,"n_cols":67,"rows_kept":163,"cut":false,"hidden":false,"merged":[[13,18,14,18],[13,19,17,26],[15,2,15,7],[16,2,17,7],[39,14,40,14],[32,2,35,7],[19,16,20,16],[19,14,20,14],[18,2,19,7],[23,2,26,8],[22,19,23,20],[22,21,23,26],[29,14,30,14],[34,14,35,14],[6,13,6,14],[65,2,65,7],[68,1,69,1],[54,14,55,14],[59,14,60,14],[49,14,50,14],[44,14,45,14],[22,9,23,9],[24,14,25,14],[20,2,22,8],[13,1,14,1],[6,2,6,5],[6,6,6,12],[7,2,7,5],[7,6,7,14],[9,12,9,14],[10,2,10,5],[10,18,10,26],[11,2,11,5],[11,18,11,26],[10,6,10,11],[11,6,11,11],[10,12,10,14],[11,12,11,14],[1,2,1,4],[4,1,5,1],[5,2,5,5],[5,6,5,14],[5,18,5,20],[6,18,6,25],[76,36,76,38],[26,21,27,23],[27,24,27,26],[29,24,29,26],[28,21,29,23],[18,19,20,26],[8,18,8,26],[22,18,23,18],[24,19,24,20],[24,21,24,26],[25,19,25,20],[25,21,25,26],[27,19,29,20],[9,18,9,26],[70,2,70,26],[7,16,7,17],[7,18,7,25],[8,2,8,5],[8,6,8,14],[9,6,9,11],[8,16,8,17],[9,2,9,5]]}
[]
[null,null,"購入仕様書",null,null,null,"スーパーマニホールド",null,null,null,null,null,"反転用",null,"(母管が右)",null,null,null,null,null,null,null,null,null,null,null,"株式会社リガルジョイント"]
[null,null,null,null,null,null,null,null,null,null,null,null,null,null,null,null,null,null,null,null,null,null,null,null,null,null,"TEL：042-756-7411"]
[null,"正しくご購入いただくために①~④を記入して下さい。",null,null,null,null,null,null,null,null,null,null,null,null,null,null,null,null,null,null,null,null,null,null,null,null,"FAX：042-752-2004"]
[null,"①","太枠内をご記入下さい。",null,null,null,null,null,null,null,"　　　*は必須項目"]
[null,null,"会社名　　*",null,null,null,null,null,null,null,null,null,null,null,null,null,"ご注文日　　　*",null,null,null,null,"年",null,null,"月",null,"日"]
[null,null,"貴社ご担当者 *",null,null,null,"　",null,null,null,null,null,null,"様　",null,null,"希望する総流量",null,null,null,null,null,null,null,null,null,"L/min"]
[null,null,"連絡先　　*",null,null,null,null,null,null,null,null,null,null,null,null,null,"供給圧力",null,null,null,null,null,null,null,null,null,"MPa"]
[null,null,"使用流体　*",null,null,null,null,null,null,null,null,null,null,null,null,null,"弊社記入欄"]
[null,null,"母管径　　*",null,null,null,"母管径を選択",null,null,null,null,null,"インチ",null,null,null,"担当"]
[null,null,"連数　　　*",null,null,null,"連数を選択",null,null,null,null,null,"連",null,null,null,"注文番号"]
[null,null,"数量　　　*",null,null,null,"数量を選択",null,null,null,null,null,"台",null,null,null,"管理番号"]
[]
[null,"②","番号順に一連ずつ使用部品を選んで下さい。(太枠内をクリックすると選択肢が出ます)",null,null,null,null,null,null,null,null,null,null,null,null,null,null,"　　","③","流量センサを搭載する場合、\nオレンジ枠内から入出力仕様を選んで下さい。\n(太枠内をクリックすると選択肢が出ます)"]
[null,null,"2-6■母管プラグ",null,null,null,null,null,null,null,null,null,null,null,null,null,"2-1■流量調整バルブ"]
[null,null,null,null,null,null,null,null,null,null,null,null,null,null,"選択"]
[null,null,"2-2■流路\n2-4■枝管アダプタ"]
[null,null,null,null,null,null,null,null,null,1,"口径と材質を選択",null,"搭載機器を選択",null,"流路",null,"流量調整バルブあり"]
[null,null,"2-3■搭載機器",null,null,null,null,null,null,null,null,null,null,null,null,null,null,null,null,"■センサ接液部のOリングはフッ素ゴムです。\n■ケーブル長は標準で500mmです。"]
[null,null,null,null,null,null,null,null,null,null,null,null,null,null,"選択",null,"　　"]
[null,null,"(流路を先に選んでください)\n\n2-5■連結部分"]
[]
[null,null,null,null,null,null,null,null,null,2,"口径と材質を選択",null,"搭載機器を選択",null,"流路",null,"有無を選択",null,null,"センサ\n型式",null,"選択"]
[null,null,"空欄：流体を流す\n  × ：流体を流さない"]
[null,null,null,null,null,null,null,null,null,null,null,null,null,null,"選択",null,null,null,null,"出力",null,"出力を選択"]
[null,null,null,null,null,null,null,null,null,null,null,null,null,null,null,null,null,null,null,"電源",null,"電源を選択"]
[null,null,null,null,null,null,null,null,null,null,null,null,null,null,null,null,null,null,null,null,null,"流量"]
[null,null,null,null,null,null,null,null,null,3,"口径と材質を選択",null,"搭載機器を選択",null,"流路",null,"有無を選択",null,null,"アラーム\n出力\n(KSLのみ)",null,null,null,null,"AかBを選択"]
[null,null,null,null,null,null,null,null,null,null,null,null,null,null,null,null,null,null,null,null,null,"温度"]
[null,null,null,null,null,null,null,null,null,null,null,null,null,null,"選択",null,null,null,null,null,null,null,null,null,"AかBを選択"]
[]
[]
[null,null,"※使用しないブロック\n　は未記入のままに\n　しておいて下さい。",null,null,null,null,null,null,4,"口径と材質を選択",null,"搭載機器を選択",null,"流路",null,"有無を選択"]
[]
[null,null,null,null,null,null,null,null,null,null,null,null,null,null,"選択"]
[]
[]
[null,null,null,null,null,null,null,null,null,5,"口径と材質を選択",null,"搭載機器を選択",null,"流路",null,"有無を選択"]
[]
[null,null,null,null,null,null,null,null,null,null,null,null,null,null,"選択"]
[]
[]
[null,null,null,null,null,null,null,null,null,6,"口径と材質を選択",null,"搭載機器を選択",null,"流路",null,"有無を選択"]
[]
[null,null,null,null,null,null,null,null,null,null,null,null,null,null,"選択"]
[]
[]
[null,null,null,null,null,null,null,null,null,7,"口径と材質を選択",null,"搭載機器を選択",null,"流路",null,"有無を選択"]
[]
[null,null,null,null,null,null,null,null,null,null,null,null,null,null,"選択"]
[]
[]
[null,null,null,null,null,null,null,null,null,8,"口径と材質を選択",null,"搭載機器を選択",null,"流路",null,"有無を選択"]
[]
[null,null,null,null,null,null,null,null,null,null,null,null,null,null,"選択"]
[]
[]
[null,null,null,null,null,null,null,null,null,9,"口径と材質を選択",null,"搭載機器を選択",null,"流路",null,"有無を選択"]
[]
[null,null,null,null,null,null,null,null,null,null,null,null,null,null,"選択"]
[]
[]
[null,null,null,null,null,null,null,null,null,10,"口径と材質を選択",null,"搭載機器を選択",null,"流路",null,"有無を選択"]
[]
[]
[null,null,"2-6■母管プラグ",null,null,null,null,null,null,null,null,null,null,null,"選択"]
[]
[]
[null,"④"]
[null,null,"特記事項",null,null,"(ケーブル長の変更など、指示事項がある場合はこちらに記入して下さい。)"]
[]
[null,null,"※性能改善のため、形状、仕様を予告なく変更する場合がありますのでご了承下さい。"]
[null,null,"※納期、価格、仕様等不明点がございましたら弊社営業までお気軽にお問い合わせ下さい。",null,null,null,null,null,null,null,null,null,null,null,null,null,null,null,null,null,null,null,null,null,null,null,"<CAT-No.20171113>"]
[]
[null,null,null,null,null,null,null,null,null,null,null,null,null,null,null,null,null,null,null,null,null,null,null,null,null,null,null,null,null,null,null,null,null,null,null,null,null,null,null,null,null,null,null,"出力"]
[null,null,null,null,null,null,null,null,null,null,null,null,null,null,null,null,null,null,null,null,null,null,null,null,null,null,null,null,null,null,null,null,null,null,null,null,null,null,null,"年","月","日"]
[null,null,null,null,null,null,null,null,null,null,null,null,null,null,null,null,null,null,null,null,null,null,null,null,null,null,null,null,null,null,null,null,"流路","流路による搭載機器選択",null,"流路","総流量が251以上の場合、流量計を選択できないように搭載機器はこちらのリストを使う。"]
[null,null,null,null,null,null,null,null,null,null,null,null,null,null,null,null,null,null,null,null,null,null,null,null,null,null,null,null,null,null,null,"名前","流路","←","→","流路選択","←←","→→",null,2015,1,1,null,"搭載機器","選択","FSー3S","FSー10S","FSー30S","FSー3N","FSー10N","FSー30N","FSー3C","FSー10C","FSー30C","FSー3AR","FSー10AR","FSー30AR","KSLー5L","KSLー10L","KSLー30L","KSLー50L","KSLー5LN","KSLー10LN","KSLー30LN","KSLー50LN"]
[null,null,null,null,null,null,null,null,null,null,null,null,null,null,null,null,null,null,null,null,null,null,null,null,null,null,null,null,null,null,null,"選択肢","流路","搭載機器を選択","搭載機器を選択",null,"搭載機器を選択","搭載機器を選択",null,2016,2,2,null,"選択肢",null,"出力を選択","出力を選択","出力を選択","出力を選択","出力を選択","出力を選択","出力を選択","出力を選択","出力を選択","出力を選択","出力を選択","出力を選択","出力を選択","出力を選択","出力を選択","出力を選択","出力を選択","出力を選択","出力を選択","出力を選択"]
[null,null,null,null,null,null,null,null,null,null,null,null,null,null,null,null,null,null,null,null,null,null,null,null,null,null,null,null,null,null,null,null,"←","スルーパイプSUS304","FS-3S",null,"スルーパイプSUS304","スルーパイプSUS304",null,2017,3,3,null,null,null,"0～10V","0～10V","0～10V","パルス出力","パルス出力","パルス出力","0～10V","0～10V","0～10V","0～10V","0～10V","0～10V","0～10V","0～10V","0～10V","0～10V","0～10V","0～10V","0～10V","0～10V"]
[null,null,null,null,null,null,null,null,null,null,null,null,null,null,null,null,null,null,null,null,null,null,null,null,null,null,null,null,null,null,null,null,"→","スルーパイプBsBM(Niメッキ)","FS-10S",null,"スルーパイプBsBM(Niメッキ)","スルーパイプBsBM(Niメッキ)",null,2018,4,4,null,null,null,"4～20mA","4～20mA","4～20mA",null,null,null,null,null,null,"1～5V","1～5V","1～5V","4～20mA","4～20mA","4～20mA","4～20mA","4～20mA","4～20mA","4～20mA","4～20mA"]
[null,null,null,null,null,null,null,null,null,null,null,null,null,null,null,null,null,null,null,null,null,null,null,null,null,null,null,null,null,null,null,null,null,"ストッププラグSUS304","FS-30S",null,"ストッププラグSUS304","ストッププラグSUS304",null,2019,5,5,null,null,null,null,null,null,null,null,null,null,null,null,"4～20mA","4～20mA","4～20mA","パルス出力","DPM接続","パルス出力","DPM接続","パルス出力","パルス出力","パルス出力","パルス出力"]
[null,null,null,null,null,null,null,null,null,null,null,null,null,null,null,null,null,null,null,null,null,null,null,null,null,null,null,null,null,null,null,null,null,"ストッププラグBsBM(Niメッキ)","FS-3N",null,"ストッププラグBsBM(Niメッキ)","ストッププラグBsBM(Niメッキ)",null,2020,6,6,null,null,null,null,null,null,null,null,null,null,null,null,"パルス出力","パルス出力","パルス出力","DPM接続",null,"DPM接続",null,"DPM接続","DPM接続","DPM接続","DPM接続"]
[null,null,null,null,null,null,null,null,null,null,null,null,null,null,null,null,null,null,null,null,null,null,null,null,null,null,null,null,null,null,null,null,null,"ボールバルブ","FS-10N",null,"ボールバルブ","ボールバルブ",null,2021,7,7]
[null,null,null,null,null,null,null,null,null,null,null,null,null,null,null,null,null,null,null,null,null,null,null,null,null,null,null,null,null,null,null,null,null,"電磁弁(NC)","FS-30N",null,"電磁弁(NC)","逆止弁(トマル)",null,2022,8,8]
[null,null,null,null,null,null,null,null,null,null,null,null,null,null,null,null,null,null,null,null,null,null,null,null,null,null,null,null,null,null,null,null,null,"電磁弁(NO)","FS-3C",null,"電磁弁(NO)",null,null,2023,9,9,null,"アダプタ","50L、50LNは3/8使用不可"]
[null,null,null,null,null,null,null,null,null,null,null,null,null,null,null,null,null,null,null,null,null,null,null,null,null,null,null,null,null,null,null,null,null,"RSV(NC)","FS-10C",null,"RSV(NC)",null,null,2024,10,10,null,null,null,null,"下のセルは消さないこと"]
[null,null,null,null,null,null,null,null,null,null,null,null,null,null,null,null,null,null,null,null,null,null,null,null,null,null,null,null,null,null,null,null,null,"RSV(NO)","FS-30C",null,"RSV(NO)",null,null,2025,11,11,null,"アダプタ","50L用アダプタ",null,{"$f":"IF(OR($M$18=\"KSL-50L\",$M$18=\"KSL-50LN\"),\"_50L用アダプタ\",IF($M$18=\"搭載機器を選択\",\" \",\"アダプタ\"))","v":" "}]
[null,null,null,null,null,null,null,null,null,null,null,null,null,null,null,null,null,null,null,null,null,null,null,null,null,null,null,null,null,null,null,null,null,"エアシリンダバルブ","FS-3AR",null,"エアシリンダバルブ",null,null,2026,12,12,null,"口径と材質を選択","口径と材質を選択",null,{"$f":"IF(OR($M$23=\"KSL-50L\",$M$23=\"KSL-50LN\"),\"_50L用アダプタ\",IF($M$23=\"搭載機器を選択\",\" \",\"アダプタ\"))","v":" "}]
[null,null,null,null,null,null,null,null,null,null,null,null,null,null,null,null,null,null,null,null,null,null,null,null,null,null,null,null,null,null,null,null,null,"逆止弁(トマル)","FS-10AR",null,"逆止弁(トマル)",null,null,2027,null,13,null,"Rc1/2 BsBM(Niメッキ)","Rc1/2 BsBM(Niメッキ)",null,{"$f":"IF(OR($M$28=\"KSL-50L\",$M$28=\"KSL-50LN\"),\"_50L用アダプタ\",IF($M$28=\"搭載機器を選択\",\" \",\"アダプタ\"))","v":" "}]
[null,null,null,null,null,null,null,null,null,null,null,null,null,null,null,null,null,null,null,null,null,null,null,null,null,null,null,null,null,null,null,null,null,null,"FS-30AR",null,null,null,null,2028,null,14,null,"Rc1/2 SUS","Rc1/2 SUS",null,{"$f":"IF(OR($M$33=\"KSL-50L\",$M$33=\"KSL-50LN\"),\"_50L用アダプタ\",IF($M$33=\"搭載機器を選択\",\" \",\"アダプタ\"))","v":" "}]
[null,null,null,null,null,null,null,null,null,null,null,null,null,null,null,null,null,null,null,null,null,null,null,null,null,null,null,null,null,null,null,null,null,null,"KSL-5L",null,null,null,null,2029,null,15,null,"Rc3/8 BsBM(Niメッキ)",null,null,{"$f":"IF(OR($M$38=\"KSL-50L\",$M$38=\"KSL-50LN\"),\"_50L用アダプタ\",IF($M$38=\"搭載機器を選択\",\" \",\"アダプタ\"))","v":" "}]
[null,null,null,null,null,null,null,null,null,null,null,null,null,null,null,null,null,null,null,null,null,null,null,null,null,null,null,null,null,null,null,null,null,null,"KSL-10L",null,null,null,null,2030,null,16,null,"Rc3/8 SUS",null,null,{"$f":"IF(OR($M$43=\"KSL-50L\",$M$43=\"KSL-50LN\"),\"_50L用アダプタ\",IF($M$43=\"搭載機器を選択\",\" \",\"アダプタ\"))","v":" "}]
[null,null,null,null,null,null,null,null,null,null,null,null,null,null,null,null,null,null,null,null,null,null,null,null,null,null,null,null,null,null,null,null,null,null,"KSL-30L",null,null,null,null,2031,null,17,null,null,null,null,{"$f":"IF(OR($M$48=\"KSL-50L\",$M$48=\"KSL-50LN\"),\"_50L用アダプタ\",IF($M$48=\"搭載機器を選択\",\" \",\"アダプタ\"))","v":" "}]
[null,null,null,null,null,null,null,null,null,null,null,null,null,null,null,null,null,null,null,null,null,null,null,null,null,null,null,null,null,null,null,null,null,null,"KSL-50L",null,null,null,null,2032,null,18,null,null,null,null,{"$f":"IF(OR($M$53=\"KSL-50L\",$M$53=\"KSL-50LN\"),\"_50L用アダプタ\",IF($M$53=\"搭載機器を選択\",\" \",\"アダプタ\"))","v":" "}]
[null,null,null,null,null,null,null,null,null,null,null,null,null,null,null,null,null,null,null,null,null,null,null,null,null,null,null,null,null,null,null,null,null,null,"KSL-5LN",null,null,null,null,2033,null,19,null,null,null,null,{"$f":"IF(OR($M$58=\"KSL-50L\",$M$58=\"KSL-50LN\"),\"_50L用アダプタ\",IF($M$58=\"搭載機器を選択\",\" \",\"アダプタ\"))","v":" "}]
[null,null,null,null,null,null,null,null,null,null,null,null,null,null,null,null,null,null,null,null,null,null,null,null,null,null,null,null,null,null,null,null,null,null,"KSL-10LN",null,null,null,null,2034,null,20,null,null,null,null,{"$f":"IF(OR($M$63=\"KSL-50L\",$M$63=\"KSL-50LN\"),\"_50L用アダプタ\",IF($M$63=\"搭載機器を選択\",\" \",\"アダプタ\"))","v":" "}]
[null,null,null,null,null,null,null,null,null,null,null,null,null,null,null,null,null,null,null,null,null,null,null,null,null,null,null,null,null,null,null,null,null,null,"KSL-30LN",null,null,null,null,2035,null,21]
[null,null,null,null,null,null,null,null,null,null,null,null,null,null,null,null,null,null,null,null,null,null,null,null,null,null,null,null,null,null,null,null,null,null,"KSL-50LN",null,null,null,null,2036,null,22]
[null,null,null,null,null,null,null,null,null,null,null,null,null,null,null,null,null,null,null,null,null,null,null,null,null,null,null,null,null,null,null,null,null,null,"スルーパイプSUS304",null,null,null,null,2037,null,23]
[null,null,null,null,null,null,null,null,null,null,null,null,null,null,null,null,null,null,null,null,null,null,null,null,null,null,null,null,null,null,null,null,null,null,"スルーパイプBsBM(Niメッキ)",null,null,null,null,2038,null,24]
[null,null,null,null,null,null,null,null,null,null,null,null,null,null,null,null,null,null,null,null,null,null,null,null,null,null,null,null,null,null,null,null,null,null,"ストッププラグSUS304",null,null,null,null,2039,null,25]
[null,null,null,null,null,null,null,null,null,null,null,null,null,null,null,null,null,null,null,null,null,null,null,null,null,null,null,null,null,null,null,null,null,null,"ストッププラグBsBM(Niメッキ)",null,null,null,null,2040,null,26,null,"電源"]
[null,null,null,null,null,null,null,null,null,null,null,null,null,null,null,null,null,null,null,null,null,null,null,null,null,null,null,null,null,null,null,null,null,null,"ボールバルブ",null,null,null,null,2041,null,27]
[null,null,null,null,null,null,null,null,null,null,null,null,null,null,null,null,null,null,null,null,null,null,null,null,null,null,null,null,null,null,null,null,null,null,"逆止弁(トマル)",null,null,null,null,2042,null,28,null,null,null,"出力仕様、電源"]
[null,null,null,null,null,null,null,null,null,null,null,null,null,null,null,null,null,null,null,null,null,null,null,null,null,null,null,null,null,null,null,null,null,null,null,null,null,null,null,2043,null,29,null,"搭載機器","選択","KSL-5/10/30/50L","KSL-5/10/30/50LN","FS-3/10/30S","FS-3/10/30AR","FS-3/10/30C","FS-3/10/30N"]
[null,null,null,null,null,null,null,null,null,null,null,null,null,null,null,null,null,null,null,null,null,null,null,null,null,null,null,null,null,null,null,null,null,null,null,null,null,null,null,2044,null,30,null,"選択肢",null,"電源を選択","電源を選択","電源を選択","電源を選択","電源を選択","電源を選択"]
[null,null,null,null,null,null,null,null,null,null,null,null,null,null,null,null,null,null,null,null,null,null,null,null,null,null,null,null,null,null,null,null,null,null,null,null,null,null,null,2045,null,31,null,null,null,"DC24V±10%","DC24V±10%","DC24V±10%","DC24V±10%","DC24V±10%","DC24V±10%"]
[null,null,null,null,null,null,null,null,null,null,null,null,null,null,null,null,null,null,null,null,null,null,null,null,null,null,null,null,null,null,null,null,null,null,null,null,null,null,null,2046,null,null,null,null,null,"DC12V±5%","DC12V±5%","DC12V±5%","DC12V±5%",null,"DC12V±5%"]
[null,null,null,null,null,null,null,null,null,null,null,null,null,null,null,null,null,null,null,null,null,null,null,null,null,null,null,null,{"$f":"M18","v":"搭載機器を選択"},null,null,null,1,"FS-3S",3,null,null,{"$f":"IF($AC110=\"搭載機器を選択\",0,VLOOKUP($AC110,$AH$110:$AI$135,2,0))","v":0},null,2047]
[null,null,null,null,null,null,null,null,null,null,null,null,null,null,null,null,null,null,null,null,null,null,null,null,null,null,null,null,{"$f":"M23","v":"搭載機器を選択"},null,null,null,2,"FS-10S",10,null,null,{"$f":"IF($AC111=\"搭載機器を選択\",0,VLOOKUP($AC111,$AH$110:$AI$135,2,0))","v":0},null,2048,null,null,null,"アラーム出力"]
[null,null,null,null,null,null,null,null,null,null,null,null,null,null,null,null,null,null,null,null,null,null,null,null,null,null,null,null,{"$f":"M28","v":"搭載機器を選択"},null,null,null,3,"FS-30S",30,null,null,{"$f":"IF($AC112=\"搭載機器を選択\",0,VLOOKUP($AC112,$AH$110:$AI$135,2,0))","v":0},null,2049]
[null,null,null,null,null,null,null,null,null,null,null,null,null,null,null,null,null,null,null,null,null,null,null,null,null,null,null,null,{"$f":"M33","v":"搭載機器を選択"},null,null,null,4,"FS-3N",3,null,null,0,null,2050,null,null,null,null,"センサ型式","出力仕様、電源"]
[null,null,null,null,null,null,null,null,null,null,null,null,null,null,null,null,null,null,null,null,null,null,null,null,null,null,null,null,{"$f":"M38","v":"搭載機器を選択"},null,null,null,5,"FS-10N",10,null,null,0,null,2051,null,null,null,"搭載機器","センサ型式","KSL-5/10/30/50L","KSL-5/10/30/50LN"]
[null,null,null,null,null,null,null,null,null,null,null,null,null,null,null,null,null,null,null,null,null,null,null,null,null,null,null,null,{"$f":"M43","v":"搭載機器を選択"},null,null,null,6,"FS-30N",30,null,null,0,null,2052,null,null,null,"選択肢","流量","AかBを選択","AかBを選択"]
[null,null,null,null,null,null,null,null,null,null,null,null,null,null,null,null,null,null,null,null,null,null,null,null,null,null,null,null,{"$f":"M48","v":"搭載機器を選択"},null,null,null,7,"FS-3C",3,null,null,0,null,2053,null,null,null,null,null,"A","A"]
[null,null,null,null,null,null,null,null,null,null,null,null,null,null,null,null,null,null,null,null,null,null,null,null,null,null,null,null,{"$f":"M53","v":"搭載機器を選択"},null,null,null,8,"FS-10C",10,null,null,0,null,2054,null,null,null,null,null,"B","B"]
[null,null,null,null,null,null,null,null,null,null,null,null,null,null,null,null,null,null,null,null,null,null,null,null,null,null,null,null,{"$f":"M58","v":"搭載機器を選択"},null,null,null,9,"FS-30C",30,null,null,0,null,2055,null,null,null,null,"温度","AかBを選択","AかBを選択"]
[null,null,null,null,null,null,null,null,null,null,null,null,null,null,null,null,null,null,null,null,null,null,null,null,null,null,null,null,{"$f":"M63","v":"搭載機器を選択"},null,null,null,10,"FS-3AR",3,null,null,{"$f":"SUM(AL110:AL118)","v":0},null,2056,null,null,null,null,null,"A","A"]
[null,null,null,null,null,null,null,null,null,null,null,null,null,null,null,null,null,null,null,null,null,null,null,null,null,null,null,null,null,null,null,null,11,"FS-10AR",10,null,null,null,null,2057,null,null,null,null,null,"B","B"]
[null,null,null,null,null,null,null,null,null,null,null,null,null,null,null,null,null,null,null,null,null,null,null,null,null,null,null,null,null,null,null,null,12,"FS-30AR",30,null,null,null,null,2058]
[null,null,null,null,null,null,null,null,null,null,null,null,null,null,null,null,null,null,null,null,null,null,null,null,null,null,null,null,null,null,null,null,13,"KSL-5L",5,null,null,null,null,2059]
[null,null,null,null,null,null,null,null,null,null,null,null,null,null,null,null,null,null,null,null,null,null,null,null,null,null,null,null,null,null,null,null,14,"KSL-10L",10,null,null,null,null,2060]
[null,null,null,null,null,null,null,null,null,null,null,null,null,null,null,null,null,null,null,null,null,null,null,null,null,null,null,null,null,null,null,null,15,"KSL-30L",30,null,null,null,null,2061,null,null,null,null,null,null,{"$f":"VLOOKUP(V23,AV130:AW149,2,0)","v":{"$error":"#N/A"}},"FSー3S","FSー10S","FSー30S","FSー3N","FSー10N","FSー30N","FSー3C","FSー10C","FSー30C","FSー3AR","FSー10AR","FSー30AR","KSLー5L","KSLー10L","KSLー30L","KSLー50L","KSLー5LN","KSLー10LN","KSLー30LN","KSLー50LN"]
[null,null,null,null,null,null,null,null,null,null,null,null,null,null,null,null,null,null,null,null,null,null,null,null,null,null,null,null,null,null,null,null,16,"KSL-50L",50,null,null,null,null,2062,null,null,null,null,null,null,null,"FSーー3S","FSーー10S","FSーー30S","FSーー3N","FSーー10N","FSーー30N","FSーー3C","FSーー10C","FSーー30C","FSーー3AR","FSーー10AR","FSーー30AR","KSLーー5L","KSLーー10L","KSLーー30L","KSLーー50L","KSLーー5LN","KSLーー10LN","KSLーー30LN","KSLーー50LN"]
[null,null,null,null,null,null,null,null,null,null,null,null,null,null,null,null,null,null,null,null,null,null,null,null,null,null,null,null,null,null,null,null,17,"KSL-5LN",5,null,null,null,null,2063,null,null,null,null,null,null,null,"電源を選択","電源を選択","電源を選択","電源を選択","電源を選択","電源を選択","電源を選択","電源を選択","電源を選択","電源を選択","電源を選択","電源を選択","電源を選択","電源を選択","電源を選択","電源を選択","電源を選択","電源を選択","電源を選択","電源を選択"]
[null,null,null,null,null,null,null,null,null,null,null,null,null,null,null,null,null,null,null,null,null,null,null,null,null,null,null,null,null,null,null,null,18,"KSL-10LN",10,null,null,null,null,2064,null,null,null,null,null,null,null,"DC24V±10%","DC24V±10%","DC24V±10%","DC24V±10%","DC24V±10%","DC24V±10%","DC24V±10%","DC24V±10%","DC24V±10%","DC24V±10%","DC24V±10%","DC24V±10%","DC24V±10%","DC24V±10%","DC24V±10%","DC24V±10%","DC24V±10%","DC24V±10%","DC24V±10%","DC24V±10%"]
[null,null,null,null,null,null,null,null,null,null,null,null,null,null,null,null,null,null,null,null,null,null,null,null,null,null,null,null,null,null,null,null,19,"KSL-30LN",30,null,null,null,null,2065,null,null,null,null,null,null,null,"DC12V±5%","DC12V±5%","DC12V±5%","DC12V±5%","DC12V±5%","DC12V±5%",null,null,null,"DC12V±5%","DC12V±5%","DC12V±5%","DC12V±5%","DC12V±5%","DC12V±5%","DC12V±5%","DC12V±5%","DC12V±5%","DC12V±5%","DC12V±5%"]
[null,null,null,null,null,null,null,null,null,null,null,null,null,null,null,null,null,null,null,null,null,null,null,null,null,null,null,null,null,null,null,null,20,"KSL-50LN",50,null,null,null,null,2066]
[null,null,null,null,null,null,null,null,null,null,null,null,null,null,null,null,null,null,null,null,null,null,null,null,null,null,null,null,null,null,null,null,21,"スルーパイプSUS304",0,null,null,null,null,2067,null,null,null,null,null,null,null,"FSー3S","FSーー3S"]
[null,null,null,null,null,null,null,null,null,null,null,null,null,null,null,null,null,null,null,null,null,null,null,null,null,null,null,null,null,null,null,null,22,"スルーパイプBsBM(Niメッキ)",0,null,null,null,null,2068,null,null,null,null,null,null,null,"FSー10S","FSーー10S"]
[null,null,null,null,null,null,null,null,null,null,null,null,null,null,null,null,null,null,null,null,null,null,null,null,null,null,null,null,null,null,null,null,23,"ストッププラグSUS304",0,null,null,null,null,2069,null,null,null,null,null,null,null,"FSー30S","FSーー30S"]
[null,null,null,null,null,null,null,null,null,null,null,null,null,null,null,null,null,null,null,null,null,null,null,null,null,null,null,null,null,null,null,null,24,"ストッププラグBsBM(Niメッキ)",0,null,null,null,null,2070,null,null,null,null,null,null,null,"FSー3N","FSーー3N"]
[null,null,null,null,null,null,null,null,null,null,null,null,null,null,null,null,null,null,null,null,null,null,null,null,null,null,null,null,null,null,null,null,25,"ボールバルブ",0,null,null,null,null,2071,null,null,null,null,null,null,null,"FSー10N","FSーー10N"]
[null,null,null,null,null,null,null,null,null,null,null,null,null,null,null,null,null,null,null,null,null,null,null,null,null,null,null,null,null,null,null,null,26,"逆止弁(トマル)",0,null,null,null,null,2072,null,null,null,null,null,null,null,"FSー30N","FSーー30N"]
[null,null,null,null,null,null,null,null,null,null,null,null,null,null,null,null,null,null,null,null,null,null,null,null,null,null,null,null,null,null,null,null,null,null,null,null,null,null,null,2073,null,null,null,null,null,null,null,"FSー3C","FSーー3C"]
[null,null,null,null,null,null,null,null,null,null,null,null,null,null,null,null,null,null,null,null,null,null,null,null,null,null,null,null,null,null,null,null,null,null,null,null,null,null,null,2074,null,null,null,null,null,null,null,"FSー10C","FSーー10C"]
[null,null,null,null,null,null,null,null,null,null,null,null,null,null,null,null,null,null,null,null,null,null,null,null,null,null,null,null,null,null,null,null,null,null,null,null,null,null,null,2075,null,null,null,null,null,null,null,"FSー30C","FSーー30C"]
[null,null,null,null,null,null,null,null,null,null,null,null,null,null,null,null,null,null,null,null,null,null,null,null,null,null,null,null,null,null,null,null,null,null,null,null,null,null,null,2076,null,null,null,null,null,null,null,"FSー3AR","FSーー3AR"]
[null,null,null,null,null,null,null,null,null,null,null,null,null,null,null,null,null,null,null,null,null,null,null,null,null,null,null,null,null,null,null,null,null,null,null,null,null,null,null,2077,null,null,null,null,null,null,null,"FSー10AR","FSーー10AR"]
[null,null,null,null,null,null,null,null,null,null,null,null,null,null,null,null,null,null,null,null,null,null,null,null,null,null,null,null,null,null,null,null,null,null,null,null,null,null,null,2078,null,null,null,null,null,null,null,"FSー30AR","FSーー30AR"]
[null,null,null,null,null,null,null,null,null,null,null,null,null,null,null,null,null,null,null,null,null,null,null,null,null,null,null,null,null,null,null,null,null,null,null,null,null,null,null,2079,null,null,null,null,null,null,null,"KSLー5L","KSLーー5L"]
[null,null,null,null,null,null,null,null,null,null,null,null,null,null,null,null,null,null,null,null,null,null,null,null,null,null,null,null,null,null,null,null,null,null,null,null,null,null,null,2080,null,null,null,null,null,null,null,"KSLー10L","KSLーー10L"]
[null,null,null,null,null,null,null,null,null,null,null,null,null,null,null,null,null,null,null,null,null,null,null,null,null,null,null,null,null,null,null,null,null,null,null,null,null,null,null,2081,null,null,null,null,null,null,null,"KSLー30L","KSLーー30L"]
[null,null,null,null,null,null,null,null,null,null,null,null,null,null,null,null,null,null,null,null,null,null,null,null,null,null,null,null,null,null,null,null,null,null,null,null,null,null,null,2082,null,null,null,null,null,null,null,"KSLー50L","KSLーー50L"]
[null,null,null,null,null,null,null,null,null,null,null,null,null,null,null,null,null,null,null,null,null,null,null,null,null,null,null,null,null,null,null,null,null,null,null,null,null,null,null,2083,null,null,null,null,null,null,null,"KSLー5LN","KSLーー5LN"]
[null,null,null,null,null,null,null,null,null,null,null,null,null,null,null,null,null,null,null,null,null,null,null,null,null,null,null,null,null,null,null,null,null,null,null,null,null,null,null,2084,null,null,null,null,null,null,null,"KSLー10LN","KSLーー10LN"]
[null,null,null,null,null,null,null,null,null,null,null,null,null,null,null,null,null,null,null,null,null,null,null,null,null,null,null,null,null,null,null,null,null,null,null,null,null,null,null,2085,null,null,null,null,null,null,null,"KSLー30LN","KSLーー30LN"]
[null,null,null,null,null,null,null,null,null,null,null,null,null,null,null,null,null,null,null,null,null,null,null,null,null,null,null,null,null,null,null,null,null,null,null,null,null,null,null,2086,null,null,null,null,null,null,null,"KSLー50LN","KSLーー50LN"]
[null,null,null,null,null,null,null,null,null,null,null,null,null,null,null,null,null,null,null,null,null,null,null,null,null,null,null,null,null,null,null,null,null,null,null,null,null,null,null,2087]
[null,null,null,null,null,null,null,null,null,null,null,null,null,null,null,null,null,null,null,null,null,null,null,null,null,null,null,null,null,null,null,null,null,null,null,null,null,null,null,2088]
[null,null,null,null,null,null,null,null,null,null,null,null,null,null,null,null,null,null,null,null,null,null,null,null,null,null,null,null,null,null,null,null,null,null,null,null,null,null,null,2089]
[null,null,null,null,null,null,null,null,null,null,null,null,null,null,null,null,null,null,null,null,null,null,null,null,null,null,null,null,null,null,null,null,null,null,null,null,null,null,null,2090]
[null,null,null,null,null,null,null,null,null,null,null,null,null,null,null,null,null,null,null,null,null,null,null,null,null,null,null,null,null,null,null,null,null,null,null,null,null,null,null,2091]
[null,null,null,null,null,null,null,null,null,null,null,null,null,null,null,null,null,null,null,null,null,null,null,null,null,null,null,null,null,null,null,null,null,null,null,null,null,null,null,2092]
[null,null,null,null,null,null,null,null,null,null,null,null,null,null,null,null,null,null,null,null,null,null,null,null,null,null,null,null,null,null,null,null,null,null,null,null,null,null,null,2093]
[null,null,null,null,null,null,null,null,null,null,null,null,null,null,null,null,null,null,null,null,null,null,null,null,null,null,null,null,null,null,null,null,null,null,null,null,null,null,null,2094]
[null,null,null,null,null,null,null,null,null,null,null,null,null,null,null,null,null,null,null,null,null,null,null,null,null,null,null,null,null,null,null,null,null,null,null,null,null,null,null,2095]
[null,null,null,null,null,null,null,null,null,null,null,null,null,null,null,null,null,null,null,null,null,null,null,null,null,null,null,null,null,null,null,null,null,null,null,null,null,null,null,2096]
[null,null,null,null,null,null,null,null,null,null,null,null,null,null,null,null,null,null,null,null,null,null,null,null,null,null,null,null,null,null,null,null,null,null,null,null,null,null,null,2097]
[null,null,null,null,null,null,null,null,null,null,null,null,null,null,null,null,null,null,null,null,null,null,null,null,null,null,null,null,null,null,null,null,null,null,null,null,null,null,null,2098]
[null,null,null,null,null,null,null,null,null,null,null,null,null,null,null,null,null,null,null,null,null,null,null,null,null,null,null,null,null,null,null,null,null,null,null,null,null,null,null,2099]
[null,null,null,null,null,null,null,null,null,null,null,null,null,null,null,null,null,null,null,null,null,null,null,null,null,null,null,null,null,null,null,null,null,null,null,null,null,null,null,2100]

{"sheet":"部品表","index":1,"n_rows":178,"n_cols":37,"rows_kept":178,"cut":false,"hidden":true,"merged":[[182,18,182,23],[182,24,182,25],[182,26,182,31],[182,32,182,34],[180,18,180,23],[180,24,180,25],[180,26,180,31],[180,32,180,34],[181,18,181,23],[181,24,181,25],[181,26,181,31],[181,32,181,34],[177,32,177,34],[178,18,178,23],[178,24,178,25],[178,26,178,31],[178,32,178,34],[179,18,179,23],[179,24,179,25],[179,26,179,31],[179,32,179,34],[172,25,172,26],[173,25,173,26],[174,25,174,26],[177,18,177,23],[177,24,177,25],[177,26,177,31],[166,25,166,26],[167,25,167,26],[168,25,168,26],[169,25,169,26],[170,25,170,26],[171,25,171,26],[160,25,160,26],[161,25,161,26],[162,25,162,26],[163,25,163,26],[164,25,164,26],[165,25,165,26],[154,25,154,26],[155,25,155,26],[156,25,156,26],[157,25,157,26],[158,25,158,26],[159,25,159,26],[148,25,148,26],[149,25,149,26],[150,25,150,26],[151,25,151,26],[152,25,152,26],[153,25,153,26],[142,25,142,26],[143,25,143,26],[144,25,144,26],[145,25,145,26],[146,25,146,26],[147,25,147,26],[136,25,136,26],[137,25,137,26],[138,25,138,26],[139,25,139,26],[140,25,140,26],[141,25,141,26],[130,25,130,26],[131,25,131,26],[132,25,132,26],[133,25,133,26],[134,25,134,26],[135,25,135,26],[124,25,124,26],[125,25,125,26],[126,25,126,26],[127,25,127,26],[128,25,128,26],[129,25,129,26],[120,31,120,32],[121,18,121,28],[122,18,122,28],[122,29,122,30],[123,18,123,24],[123,25,123,26],[55,2,55,3],[58,2,58,3],[61,2,61,3],[118,27,119,28],[118,31,118,32],[119,31,119,32],[42,2,42,3],[43,2,43,3],[44,2,44,3],[45,2,45,3],[46,2,46,3],[47,2,47,3],[36,2,36,3],[37,2,37,3],[38,2,38,3],[39,2,39,3],[40,2,40,3],[41,2,41,3],[30,2,30,3],[31,2,31,3],[32,2,32,3],[33,2,33,3],[34,2,34,3],[35,2,35,3],[27,2,27,3],[28,2,28,3],[29,2,29,3],[18,2,18,3],[19,2,19,3],[20,2,20,3],[21,2,21,3],[22,2,22,3],[23,2,23,3],[12,2,12,3],[13,2,13,3],[14,2,14,3],[15,2,15,3],[16,2,16,3],[17,2,17,3],[24,2,24,3],[25,2,25,3],[26,2,26,3]]}
[]
[null,"記入欄","：黄色のセルに記入"]
[]
[null,"製品名：","製品名を入力"]
[null,"客先：",{"$f":"SマニR仕様書!G6","v":0}]
[null,"部品番号：","12桁のコードを入力"]
[null,"連数：",{"$f":"SマニR仕様書!G11","v":"連数を選択"}]
[null,"分岐：",{"$f":"COUNTIF(SマニR仕様書!O16:O66,\"×\")","v":0}]
[null,"プラグ：",{"$f":"COUNTIF(SマニR仕様書!O16:O66,\"有\")","v":0}]
[]
[]
[null,null,null,null,null,null,null,null,"品名変換表"]
[null,"連数","部品番号",null,"アダプタ","カウント",null,null,"仕様書→","部品表"]
[null,1,{"$f":"VLOOKUP($E$14,構成部品表!$K$7:$L$8,2,0)","v":"2611-1333-0000"},null,{"$f":"J14","v":"スーパーマニホールド アダプタバルブ"},{"$f":"IF(E14<>\"\",COUNTIF($E$14:$E$23,E14),\"\")","v":1},null,null,{"$f":"SマニR仕様書!Q18","v":"流量調整バルブあり"},{"$f":"IF(I14=\"流量調整バルブあり\",$I$69,IF(I14=\"有無を選択\",\"\",$I$68))","v":"スーパーマニホールド アダプタバルブ"}]
[null,{"$f":"IF($C$7>1,2,\"\")","v":2},{"$f":"IF($C$7>1,VLOOKUP($E$15,構成部品表!$K$7:$L$8,2,0),\"\")","v":{"$error":"#N/A"}},null,"","",null,null,{"$f":"SマニR仕様書!Q23","v":"有無を選択"},""]
[null,{"$f":"IF($C$7>2,3,\"\")","v":3},{"$f":"IF($C$7>2,VLOOKUP($E$16,構成部品表!$K$7:$L$8,2,0),\"\")","v":{"$error":"#N/A"}},null,"","",null,null,{"$f":"SマニR仕様書!Q28","v":"有無を選択"},""]
["アダプタ",{"$f":"IF($C$7>3,4,\"\")","v":4},{"$f":"IF($C$7>3,VLOOKUP($E$17,構成部品表!$K$7:$L$8,2,0),\"\")","v":{"$error":"#N/A"}},null,"","",null,null,{"$f":"SマニR仕様書!Q33","v":"有無を選択"},""]
["選択",{"$f":"IF($C$7>4,5,\"\")","v":5},{"$f":"IF($C$7>4,VLOOKUP($E$18,構成部品表!$K$7:$L$8,2,0),\"\")","v":{"$error":"#N/A"}},null,"","",null,null,{"$f":"SマニR仕様書!Q38","v":"有無を選択"},""]
[null,{"$f":"IF($C$7>5,6,\"\")","v":6},{"$f":"IF($C$7>5,VLOOKUP($E$19,構成部品表!$K$7:$L$8,2,0),\"\")","v":{"$error":"#N/A"}},null,"","",null,null,{"$f":"SマニR仕様書!Q43","v":"有無を選択"},""]
[null,{"$f":"IF($C$7>6,7,\"\")","v":7},{"$f":"IF($C$7>6,VLOOKUP($E$20,構成部品表!$K$7:$L$8,2,0),\"\")","v":{"$error":"#N/A"}},null,"","",null,null,{"$f":"SマニR仕様書!Q48","v":"有無を選択"},""]
[null,{"$f":"IF($C$7>7,8,\"\")","v":8},{"$f":"IF($C$7>7,VLOOKUP($E$21,構成部品表!$K$7:$L$8,2,0),\"\")","v":{"$error":"#N/A"}},null,"","",null,null,{"$f":"SマニR仕様書!Q53","v":"有無を選択"},""]
[null,{"$f":"IF($C$7>8,9,\"\")","v":9},{"$f":"IF($C$7>8,VLOOKUP($E$23,構成部品表!$K$7:$L$8,2,0),\"\")","v":{"$error":"#N/A"}},null,"","",null,null,{"$f":"SマニR仕様書!Q58","v":"有無を選択"},""]
[null,{"$f":"IF($C$7>9,10,\"\")","v":10},{"$f":"IF($C$7>9,VLOOKUP($E$23,構成部品表!$K$7:$L$8,2,0),\"\")","v":{"$error":"#N/A"}},null,"","",null,null,{"$f":"SマニR仕様書!Q63","v":"有無を選択"},""]
[null,"連数","部品番号",null,"接続部","カウント"]
[null,1,{"$f":"VLOOKUP(E25,構成部品表!$O$7:$P$13,2,0)","v":{"$error":"#N/A"}},null,{"$f":"J25","v":""},{"$f":"IF($E25<>\"\",COUNTIF($E$25:$E$34,$E25),\"\")","v":""},null,null,{"$f":"SマニR仕様書!K18","v":"口径と材質を選択"},{"$f":"IF($I25=\"口径と材質を選択\",\"\",VLOOKUP($I25,$I$71:$J$77,2,))","v":""}]
[null,{"$f":"IF($C$7>1,2,\"\")","v":2},{"$f":"IF($C$7>1,VLOOKUP(E26,構成部品表!$O$7:$P$13,2,0),\"\")","v":{"$error":"#N/A"}},null,"","",null,null,{"$f":"SマニR仕様書!K23","v":"口径と材質を選択"},""]
[null,{"$f":"IF($C$7>2,3,\"\")","v":3},{"$f":"IF($C$7>2,VLOOKUP(E27,構成部品表!$O$7:$P$13,2,0),\"\")","v":{"$error":"#N/A"}},null,"","",null,null,{"$f":"SマニR仕様書!K28","v":"口径と材質を選択"},""]
["接続部",{"$f":"IF($C$7>3,4,\"\")","v":4},{"$f":"IF($C$7>3,VLOOKUP(E28,構成部品表!$O$7:$P$13,2,0),\"\")","v":{"$error":"#N/A"}},null,"","",null,null,{"$f":"SマニR仕様書!K33","v":"口径と材質を選択"},""]
["選択",{"$f":"IF($C$7>4,5,\"\")","v":5},{"$f":"IF($C$7>4,VLOOKUP(E29,構成部品表!$O$7:$P$13,2,0),\"\")","v":{"$error":"#N/A"}},null,"","",null,null,{"$f":"SマニR仕様書!K38","v":"口径と材質を選択"},""]
[null,{"$f":"IF($C$7>5,6,\"\")","v":6},{"$f":"IF($C$7>5,VLOOKUP(E30,構成部品表!$O$7:$P$13,2,0),\"\")","v":{"$error":"#N/A"}},null,"","",null,null,{"$f":"SマニR仕様書!K43","v":"口径と材質を選択"},""]
[null,{"$f":"IF($C$7>6,7,\"\")","v":7},{"$f":"IF($C$7>6,VLOOKUP(E31,構成部品表!$O$7:$P$13,2,0),\"\")","v":{"$error":"#N/A"}},null,"","",null,null,{"$f":"SマニR仕様書!K48","v":"口径と材質を選択"},""]
[null,{"$f":"IF($C$7>7,8,\"\")","v":8},{"$f":"IF($C$7>7,VLOOKUP(E32,構成部品表!$O$7:$P$13,2,0),\"\")","v":{"$error":"#N/A"}},null,"","",null,null,{"$f":"SマニR仕様書!K53","v":"口径と材質を選択"},""]
[null,{"$f":"IF($C$7>8,9,\"\")","v":9},{"$f":"IF($C$7>8,VLOOKUP(E33,構成部品表!$O$7:$P$13,2,0),\"\")","v":{"$error":"#N/A"}},null,"","",null,null,{"$f":"SマニR仕様書!K58","v":"口径と材質を選択"},""]
[null,{"$f":"IF($C$7>9,10,\"\")","v":10},{"$f":"IF($C$7>9,VLOOKUP(E34,構成部品表!$O$7:$P$13,2,0),\"\")","v":{"$error":"#N/A"}},null,"","",null,null,{"$f":"SマニR仕様書!K63","v":"口径と材質を選択"},""]
[null,"連数","部品番号",null,"搭載品","カウント"]
[null,1,{"$f":"IF(COUNTIF($J36,\"*KSL*\"),VLOOKUP($K36,構成部品表!$S$47:$T$78,2,),VLOOKUP(E36,構成部品表!$S$7:$T$37,2,0))","v":{"$error":"#N/A"}},null,{"$f":"$J36","v":""},{"$f":"IF($E36<>\"\",COUNTIF($E$36:$E$47,$E36),\"\")","v":""},null,null,{"$f":"SマニR仕様書!M18","v":"搭載機器を選択"},{"$f":"IF($I36=\"搭載機器を選択\",\"\",VLOOKUP($I36,$K$77:$L$107,2,))","v":""},{"$f":"$J36&SマニR仕様書!$Y$28&SマニR仕様書!$Y$30","v":"AかBを選択AかBを選択"}]
[null,{"$f":"IF($C$7>1,2,\"\")","v":2},{"$f":"IF(COUNTIF($J37,\"*KSL*\"),VLOOKUP($K37,構成部品表!$S$47:$T$78,2,),VLOOKUP(E37,構成部品表!$S$7:$T$37,2,0))","v":{"$error":"#N/A"}},null,"","",null,null,{"$f":"SマニR仕様書!M23","v":"搭載機器を選択"},{"$f":"IF($I37=\"搭載機器を選択\",\"\",VLOOKUP($I37,$K$77:$L$107,2,))","v":""},{"$f":"$J37&SマニR仕様書!$Y$28&SマニR仕様書!$Y$30","v":"AかBを選択AかBを選択"}]
[null,{"$f":"IF($C$7>2,3,\"\")","v":3},{"$f":"IF(COUNTIF($J38,\"*KSL*\"),VLOOKUP($K38,構成部品表!$S$47:$T$78,2,),VLOOKUP(E38,構成部品表!$S$7:$T$37,2,0))","v":{"$error":"#N/A"}},null,"","",null,null,{"$f":"SマニR仕様書!M28","v":"搭載機器を選択"},"",{"$f":"$J38&SマニR仕様書!$Y$28&SマニR仕様書!$Y$30","v":"AかBを選択AかBを選択"}]
["搭載品",{"$f":"IF($C$7>3,4,\"\")","v":4},{"$f":"IF(COUNTIF($J39,\"*KSL*\"),VLOOKUP($K39,構成部品表!$S$47:$T$78,2,),VLOOKUP(E39,構成部品表!$S$7:$T$37,2,0))","v":{"$error":"#N/A"}},null,"","",null,null,{"$f":"SマニR仕様書!M33","v":"搭載機器を選択"},"",{"$f":"$J39&SマニR仕様書!$Y$28&SマニR仕様書!$Y$30","v":"AかBを選択AかBを選択"}]
["選択",{"$f":"IF($C$7>4,5,\"\")","v":5},{"$f":"IF(COUNTIF($J40,\"*KSL*\"),VLOOKUP($K40,構成部品表!$S$47:$T$78,2,),VLOOKUP(E40,構成部品表!$S$7:$T$37,2,0))","v":{"$error":"#N/A"}},null,"","",null,null,{"$f":"SマニR仕様書!M38","v":"搭載機器を選択"},"",{"$f":"$J40&SマニR仕様書!$Y$28&SマニR仕様書!$Y$30","v":"AかBを選択AかBを選択"}]
[null,{"$f":"IF($C$7>5,6,\"\")","v":6},{"$f":"IF(COUNTIF($J41,\"*KSL*\"),VLOOKUP($K41,構成部品表!$S$47:$T$78,2,),VLOOKUP(E41,構成部品表!$S$7:$T$37,2,0))","v":{"$error":"#N/A"}},null,"","",null,null,{"$f":"SマニR仕様書!M43","v":"搭載機器を選択"},"",{"$f":"$J41&SマニR仕様書!$Y$28&SマニR仕様書!$Y$30","v":"AかBを選択AかBを選択"}]
[null,{"$f":"IF($C$7>6,7,\"\")","v":7},{"$f":"IF(COUNTIF($J42,\"*KSL*\"),VLOOKUP($K42,構成部品表!$S$47:$T$78,2,),VLOOKUP(E42,構成部品表!$S$7:$T$37,2,0))","v":{"$error":"#N/A"}},null,"","",null,null,{"$f":"SマニR仕様書!M48","v":"搭載機器を選択"},"",{"$f":"$J42&SマニR仕様書!$Y$28&SマニR仕様書!$Y$30","v":"AかBを選択AかBを選択"}]
[null,{"$f":"IF($C$7>7,8,\"\")","v":8},{"$f":"IF(COUNTIF($J43,\"*KSL*\"),VLOOKUP($K43,構成部品表!$S$47:$T$78,2,),VLOOKUP(E43,構成部品表!$S$7:$T$37,2,0))","v":{"$error":"#N/A"}},null,"","",null,null,{"$f":"SマニR仕様書!M53","v":"搭載機器を選択"},"",{"$f":"$J43&SマニR仕様書!$Y$28&SマニR仕様書!$Y$30","v":"AかBを選択AかBを選択"}]
[null,{"$f":"IF($C$7>8,9,\"\")","v":9},{"$f":"IF(COUNTIF($J44,\"*KSL*\"),VLOOKUP($K44,構成部品表!$S$47:$T$78,2,),VLOOKUP(E44,構成部品表!$S$7:$T$37,2,0))","v":{"$error":"#N/A"}},null,"","",null,null,{"$f":"SマニR仕様書!M58","v":"搭載機器を選択"},"",{"$f":"$J44&SマニR仕様書!$Y$28&SマニR仕様書!$Y$30","v":"AかBを選択AかBを選択"}]
[null,{"$f":"IF($C$7>9,10,\"\")","v":10},{"$f":"IF(COUNTIF($J45,\"*KSL*\"),VLOOKUP($K45,構成部品表!$S$47:$T$78,2,),VLOOKUP(E45,構成部品表!$S$7:$T$37,2,0))","v":{"$error":"#N/A"}},null,"","",null,null,{"$f":"SマニR仕様書!M63","v":"搭載機器を選択"},"",{"$f":"$J45&SマニR仕様書!$Y$28&SマニR仕様書!$Y$30","v":"AかBを選択AかBを選択"}]
[null,{"$f":"IF($C$7>10,11,\"\")","v":11},"1311-1624-1200",null,"Oリング　P16　フッ素ゴム",{"$f":"C7*2","v":{"$error":"#VALUE!"}}]
[]
[null,null,null,null,"←部品選択後クリックで部品表自動作成開始"]
[]
[]
[]
[]
[]
[]
[]
[null,null,"部品番号",null,"アダプタ","カウント"]
[null,null,null,null,null,">=1"]
[]
[null,null,"部品番号",null,"搭載品","カウント"]
[null,null,null,null,null,">=1"]
[]
[null,null,"部品番号",null,"接続部","カウント"]
[null,null,null,null,null,">=1"]
[]
[]
[]
[]
[null,null,null,null,null,null,null,null,"FSマニホールド アダプタボンネット"]
[null,null,null,null,null,null,null,null,"スーパーマニホールド アダプタバルブ"]
[]
[null,null,null,null,null,null,null,null,"Rc3/8 BsBM(Niメッキ)","Rc3/8 BsBM+Niメッキ アダプタ"]
[null,null,null,null,null,null,null,null,"Rc3/8 SUS","Rc3/8 SUS アダプタ"]
[null,null,null,null,null,null,null,null,"Rc1/2 BsBM(Niメッキ)","Rc1/2 BsBM+Niメッキ アダプタ"]
[null,null,null,null,null,null,null,null,"Rc1/2 SUS","Rc1/2 SUS アダプタ　(標準φ10)"]
[null,null,null,null,null,null,null,null,null,"Rc1/2 SUS アダプタ　(50L用φ12)"]
[null,null,null,null,null,null,null,null,null,"3/4ニップルアダプタ　(標準φ10)"]
[null,null,null,null,null,null,null,null,null,"3/4ニップルアダプタ　(50L用φ12)","FS-3S","FS-3S"]
[null,null,null,null,null,null,null,null,null,null,"FS-10S","FS-10S"]
[null,null,null,null,null,null,null,null,null,null,"FS-30S","FS-30S"]
[null,null,null,null,null,null,null,null,null,null,"FS-3N","FS-3N"]
[null,null,null,null,null,null,null,null,null,null,"FS-10N","FS-10N"]
[null,null,null,null,null,null,null,null,null,null,"FS-30N","FS-30N"]
[null,null,null,null,null,null,null,null,null,null,"FS-3C","FS-3C"]
[null,null,null,null,null,null,null,null,null,null,"FS-10C","FS-10C"]
[null,null,null,null,null,null,null,null,null,null,"FS-30C","FS-30C"]
[null,null,null,null,null,null,null,null,null,null,"FS-3AR","FS-3AR"]
[null,null,null,null,null,null,null,null,null,null,"FS-10AR","FS-10AR"]
[null,null,null,null,null,null,null,null,null,null,"FS-30AR","FS-30AR"]
[null,null,null,null,null,null,null,null,null,null,"KSL-5L","KSL-5L"]
[null,null,null,null,null,null,null,null,null,null,"KSL-10L","KSL-10L"]
[null,null,null,null,null,null,null,null,null,null,"KSL-30L","KSL-30L"]
[null,null,null,null,null,null,null,null,null,null,"KSL-50L","KSL-50L"]
[null,null,null,null,null,null,null,null,null,null,"KSL-5LN","KSL-5LN"]
[null,null,null,null,null,null,null,null,null,null,"KSL-10LN","KSL-10LN"]
[null,null,null,null,null,null,null,null,null,null,"KSL-30LN","KSL-30LN"]
[null,null,null,null,null,null,null,null,null,null,"KSL-50LN","KSL-50LN"]
[null,null,null,null,null,null,null,null,null,null,"スルーパイプSUS304","スルーパイプSUS"]
[null,null,null,null,null,null,null,null,null,null,"スルーパイプBsBM(Niメッキ)","スルーパイプ BsBM(Niメッキ)"]
[null,null,null,null,null,null,null,null,null,null,"ストッププラグSUS304","マニホールド ストッププラグ SUS"]
[null,null,null,null,null,null,null,null,null,null,"ストッププラグBsBM(Niメッキ)","マニホールド ストッププラグ BsBM(Niメッキ)"]
[null,null,null,null,null,null,null,null,null,null,"ボールバルブ","マニホールド用 KIボールバルブ組立"]
[null,null,null,null,null,null,null,null,null,null,"電磁弁(NC)","VXZ2240マニホールド電磁弁組立"]
[null,null,null,null,null,null,null,null,null,null,"電磁弁(NO)","VXZ2242マニホールド電磁弁組立"]
[null,null,null,null,null,null,null,null,null,null,"RSV(NC)","RSV NC"]
[null,null,null,null,null,null,null,null,null,null,"RSV(NO)","RSV NO"]
[null,null,null,null,null,null,null,null,null,null,"エアシリンダバルブ","エアシリンダバルブ総組立図"]
[null,null,null,null,null,null,null,null,null,null,"逆止弁(トマル)","マニホールド用トマル/TOM-04M組立"]
[]
[]
[]
[]
[]
[]
[]
[]
[]
[]
[]
[null,null,null,null,null,null,null,null,null,null,null,null,null,null,null,null,null,null,null,null,null,null,null,null,null,null,null,"構成部品表",null,null,null,"年　 月　 日",null,"認可"]
[null,null,null,null,null,null,null,null,null,null,null,null,null,null,null,null,null,null,null,null,null,null,null,null,null,null,null,null,null,null,null,"　年　 月　 日",null,"審査"]
[null,null,null,null,null,null,null,null,null,null,null,null,null,null,null,null,null,null,null,null,null,null,null,null,null,null,null,null,null,null,null,"   年　 月   日",null,"作成"]
[null,null,null,null,null,null,null,null,null,null,null,null,null,null,null,null,null,null,{"$f":"B4&C4","v":"製品名：製品名を入力"},null,null,null,null,null,null,null,null,null,null,"客先部品番号："]
[null,null,null,null,null,null,null,null,null,null,null,null,null,null,null,null,null,null,{"$f":"B5&C5","v":"客先：0"},null,null,null,null,null,null,null,null,null,null,{"$f":"B6&C6","v":"部品番号：12桁のコードを入力"},null,null,null,null,"（1 ／1 ）"]
[null,null,null,null,null,null,null,null,null,null,null,null,null,null,null,null,null,null,"ランク",null,null,null,null,null,null,"部　品　番　号",null,"バルーン","客先、カタログ、  旧部品番号","名　　　称","員数","メーカー","図面サイズ","内外製","備　考"]
[null,null,null,null,null,null,null,null,null,null,null,null,null,null,null,null,null,null,0,null,null,null,null,null,null,{"$f":"C6","v":"12桁のコードを入力"},null,null,null,{"$f":"C4","v":"製品名を入力"},1,null,3,null,null,null,"　"]
[]
[null,null,null,null,null,null,null,null,null,null,null,null,null,null,null,null,null,null,null,1,null,null,null,null,null,{"$f":"VLOOKUP(C7,構成部品表!Y7:AA16,3,0)","v":{"$error":"#N/A"}},null,null,"RA3-1450-01",{"$f":"VLOOKUP(C7,構成部品表!Y7:AB16,4,0)","v":{"$error":"#N/A"}},1,null,3]
[null,null,null,null,null,null,null,null,null,null,null,null,null,null,null,null,null,null,null,null,2,null,null,null,null,"2611-1301-0000",null,null,null,"ブロック",{"$f":"C7","v":"連数を選択"},null,2]
[null,null,null,null,null,null,null,null,null,null,null,null,null,null,null,null,null,null,null,null,null,3,null,null,null,"2611-1302-0000",null,null,null,"ブロック塗装仕様",{"$f":"C7","v":"連数を選択"},null,4]
[null,null,null,null,null,null,null,null,null,null,null,null,null,null,null,null,null,null,null,null,2,null,null,null,null,"2611-1303-0000",null,null,null,"エンドブロックA　",1,null,3]
[null,null,null,null,null,null,null,null,null,null,null,null,null,null,null,null,null,null,null,null,2,null,null,null,null,"2611-1304-0000",null,null,null,"エンドブロックB　",1,null,3]
[null,null,null,null,null,null,null,null,null,null,null,null,null,null,null,null,null,null,null,null,2,null,null,null,null,{"$f":"VLOOKUP(C7,構成部品表!F7:H18,3,0)","v":{"$error":"#N/A"}},null,null,null,{"$f":"VLOOKUP(C7,構成部品表!F7:H18,2,0)","v":{"$error":"#N/A"}},3,null,4]
[null,null,null,null,null,null,null,null,null,null,null,null,null,null,null,null,null,null,null,null,2,null,null,null,null,"2611-1319-0000",null,null,null,"ガイドバー",{"$f":"C7","v":"連数を選択"},null,4]
[null,null,null,null,null,null,null,null,null,null,null,null,null,null,null,null,null,null,null,null,2,null,null,null,null,null,null,null,null,"H.SUS304 M4×12",1]
[null,null,null,null,null,null,null,null,null,null,null,null,null,null,null,null,null,null,null,null,2,null,null,null,null,null,null,null,null,"S.SUS304 WA×6",6]
[null,null,null,null,null,null,null,null,null,null,null,null,null,null,null,null,null,null,null,null,2,null,null,null,null,null,null,null,null,"#2.SUS304L.WA×6",6]
[null,null,null,null,null,null,null,null,null,null,null,null,null,null,null,null,null,null,null,null,2,null,null,null,null,null,null,null,null,"JIS B 1183 M6袋ナット3形",6]
[null,null,null,null,null,null,null,null,null,null,null,null,null,null,null,null,null,null,null,null,2,null,null,null,null,"2611-1305-0000",null,null,null,"シールリング",{"$f":"C7+1-C8","v":{"$error":"#VALUE!"}},null,4]
[null,null,null,null,null,null,null,null,null,null,null,null,null,null,null,null,null,null,null,null,null,3,null,null,null,"1311-4035-1200",null,null,null,"Oリング　P40　フッ素ゴム",{"$f":"C7+1-C8","v":{"$error":"#VALUE!"}}]
[null,null,null,null,null,null,null,null,null,null,null,null,null,null,null,null,null,null,null,null,2,null,null,null,null,"2611-1320-0000",null,null,null,"Mジョイント",{"$f":"C7","v":"連数を選択"}]
[null,null,null,null,null,null,null,null,null,null,null,null,null,null,null,null,null,null,null,null,null,3,null,null,null,"1311-1624-1200",null,null,null,"Oリング　P16　フッ素ゴム",{"$f":"C7*1","v":{"$error":"#VALUE!"}}]
[null,null,null,null,null,null,null,null,null,null,null,null,null,null,null,null,null,null,null,null,{"$f":"IF(AE142=1,2,\"\")","v":""},null,null,null,null,{"$f":"IF(AE142=1,\"2611-1306-0000\",\"\")","v":""},null,null,null,{"$f":"IF(C8=1,構成部品表!C12,\"\")","v":""},{"$f":"IF($C$8=1,1,\"\")","v":""}]
[null,null,null,null,null,null,null,null,null,null,null,null,null,null,null,null,null,null,null,null,null,{"$f":"IF(AE143=1,3,\"\")","v":""},null,null,null,{"$f":"IF(AE143=1,\"1311-4135-1200\",\"\")","v":""},null,null,null,{"$f":"IF(C8=1,\"Oリング　P41　フッ素ゴム\",\"\")","v":""},{"$f":"IF($C$8=1,1,\"\")","v":""}]
[null,null,null,null,null,null,null,null,null,null,null,null,null,null,null,null,null,null,null,null,{"$f":"IF(AE144=1,2,\"\")","v":""},null,null,null,null,{"$f":"IF(AE144=1,\"2111-0800-0081\",\"\")","v":""},null,null,null,{"$f":"IF(C9>=1,\"R-8-1 六角プラグ\",\"\")","v":""},{"$f":"IF(C9>=1,C9,\"\")","v":""}]
[null,null,null,null,null,null,null,null,null,null,null,null,null,null,null,null,null,null,null,null,2,null,null,null,null,null,null,null,null,"六角穴付きボルト H.SUS304 MS4×8 ",{"$f":"C7*8","v":{"$error":"#VALUE!"}}]
[]
[null,null,null,null,null,null,null,null,null,null,null,null,null,null,null,null,null,null,null,{"$f":"IF(AD147=\"Oリング　P16　フッ素ゴム\",\"\",IF(AE147>=1,1,\"\"))","v":""},{"$f":"IF(AD147=\"Oリング　P16　フッ素ゴム\",2,IF(AE147>=1,\"\",\"\"))","v":""}]
[null,null,null,null,null,null,null,null,null,null,null,null,null,null,null,null,null,null,null,"",""]
[null,null,null,null,null,null,null,null,null,null,null,null,null,null,null,null,null,null,null,"",""]
[null,null,null,null,null,null,null,null,null,null,null,null,null,null,null,null,null,null,null,"",""]
[null,null,null,null,null,null,null,null,null,null,null,null,null,null,null,null,null,null,null,"",""]
[null,null,null,null,null,null,null,null,null,null,null,null,null,null,null,null,null,null,null,"",""]
[null,null,null,null,null,null,null,null,null,null,null,null,null,null,null,null,null,null,null,"",""]
[null,null,null,null,null,null,null,null,null,null,null,null,null,null,null,null,null,null,null,"",""]
[null,null,null,null,null,null,null,null,null,null,null,null,null,null,null,null,null,null,null,"",""]
[null,null,null,null,null,null,null,null,null,null,null,null,null,null,null,null,null,null,null,"",""]
[null,null,null,null,null,null,null,null,null,null,null,null,null,null,null,null,null,null,null,"",""]
[null,null,null,null,null,null,null,null,null,null,null,null,null,null,null,null,null,null,null,"",""]
[null,null,null,null,null,null,null,null,null,null,null,null,null,null,null,null,null,null,null,"",""]
[null,null,null,null,null,null,null,null,null,null,null,null,null,null,null,null,null,null,null,"",""]
[null,null,null,null,null,null,null,null,null,null,null,null,null,null,null,null,null,null,null,"",""]
[null,null,null,null,null,null,null,null,null,null,null,null,null,null,null,null,null,null,null,"",""]
[null,null,null,null,null,null,null,null,null,null,null,null,null,null,null,null,null,null,null,"",""]
[null,null,null,null,null,null,null,null,null,null,null,null,null,null,null,null,null,null,null,"",""]
[null,null,null,null,null,null,null,null,null,null,null,null,null,null,null,null,null,null,null,"",""]
[null,null,null,null,null,null,null,null,null,null,null,null,null,null,null,null,null,null,null,"",""]
[null,null,null,null,null,null,null,null,null,null,null,null,null,null,null,null,null,null,null,"",""]
[null,null,null,null,null,null,null,null,null,null,null,null,null,null,null,null,null,null,null,"",""]
[null,null,null,null,null,null,null,null,null,null,null,null,null,null,null,null,null,null,null,"",""]
[null,null,null,null,null,null,null,null,null,null,null,null,null,null,null,null,null,null,null,"",""]
[null,null,null,null,null,null,null,null,null,null,null,null,null,null,null,null,null,null,null,"",""]
[null,null,null,null,null,null,null,null,null,null,null,null,null,null,null,null,null,null,null,"",""]
[null,null,null,null,null,null,null,null,null,null,null,null,null,null,null,null,null,null,null,"",""]
[null,null,null,null,null,null,null,null,null,null,null,null,null,null,null,null,null,null,null,"",""]
[]
[null,null,null,null,null,null,null,null,null,null,null,null,null,null,null,null,null,null,null,null,null,null,null,null,null,null,null,null,null,"注．内外製区分は、数字の採用がより良い。"]
[null,null,null,null,null,null,null,null,null,null,null,null,null,null,null,null,null,null,null,null,null,null,null,null,null,null,null,null,null,null,null,"１；内製、２；外製、３；購入品"]
[null,null,null,null,null,null,null,null,null,null,null,null,null,null,null,null,null,null,"訂番",null,null,null,null,null,"日付",null,"事由",null,null,null,null,null,"設計変更通知書　通知番号"]

{"sheet":"構成部品表","index":2,"n_rows":78,"n_cols":28,"rows_kept":78,"cut":false,"hidden":true,"merged":[]}
[]
[]
[]
[]
[null,null,"マニホールド本体","部品番号",null,null,"タイロット","部品番号",null,null,"アダプタ","部品番号",null,null,"接続部","部品番号",null,null,"搭載部品","部品番号",null,"正転仕様","反転仕様",null,null,"連数","部品番号"]
[]
[null,1,"ﾌﾞﾛｯｸ　ｽｰﾊﾟｰM","2611-1301-0000",null,1,"タイロッド1連","2611-1307-0000",null,1,"FSマニホールド アダプタボンネット","2611-1178-0000",null,1,"Rc3/8 BsBM+Niメッキ アダプタ","2211-9904-0000",null,1,"FS-3S","2201-1103-9000",null,"2201-1103-9000","2201-1603-9000",null,1,"1連","2601-1306-0100","1連 スーパーマニホールド サブASSY"]
[null,"2","ﾌﾞﾛｯｸ塗装仕様　ｽｰﾊﾟｰM","2611-1302-0000",null,2,"タイロッド2連","2611-1308-0000",null,2,"スーパーマニホールド アダプタバルブ","2611-1333-0000",null,2,"Rc3/8 SUS アダプタ","2211-9902-0000",null,2,"FS-10S","2201-1110-9000",null,"2201-1110-9000","2201-1610-9000",null,2,"2連","2601-1306-0200","2連 スーパーマニホールド サブASSY"]
[null,"3","ｴﾝﾄﾞﾌﾞﾛｯｸA　ｽｰﾊﾟｰM","2611-1303-0000",null,3,"タイロッド3連","2611-1309-0000",null,null,null,null,null,3,"Rc1/2 BsBM+Niメッキ アダプタ","2211-9908-0000",null,3,"FS-30S","2201-1130-9000",null,"2201-1130-9000","2201-1630-9000",null,3,"3連","2601-1306-0300","3連 スーパーマニホールド サブASSY"]
[null,"4","ｴﾝﾄﾞﾌﾞﾛｯｸB　ｽｰﾊﾟｰM","2611-1304-0000",null,4,"タイロッド4連","2611-1310-0000",null,null,null,null,null,4,"Rc1/2 SUS アダプタ　(標準φ10)","2211-9906-0000",null,4,"FS-3N","2201-1303-9000",null,"2201-1303-9000","2201-1803-9000",null,4,"4連","2601-1306-0400","4連 スーパーマニホールド サブASSY"]
[null,"5","シールリング","2611-1305-0000",null,5,"タイロッド5連","2611-1311-0000",null,null,null,null,null,5,"Rc1/2 SUS アダプタ　(50L用φ12)","2211-9921-0000",null,5,"FS-10N","2201-1310-9000",null,"2201-1310-9000","2201-1810-9000",null,5,"5連","2601-1306-0500","5連 スーパーマニホールド サブASSY"]
[null,"6","シールディスク","2611-1306-0000",null,6,"タイロッド6連","2611-1312-0000",null,null,null,null,null,6,"3/4ニップルアダプタ　(標準φ10)","2211-9920-0000",null,6,"FS-30N","2201-1330-9000",null,"2201-1330-9000","2201-1830-9000",null,6,"6連","2601-1306-0600","6連 スーパーマニホールド サブASSY"]
[null,"7","ﾀｲﾛｯﾄﾞ1連　ｽｰﾊﾟｰM","2611-1307-0000",null,7,"タイロッド7連","2611-1313-0000",null,null,null,null,null,7,"3/4ニップルアダプタ　(50L用φ12)","2211-9965-0000",null,7,"FS-3C","2201-1403-9000",null,"2201-1403-9000","2201-1903-9000",null,7,"7連","2601-1306-0700","7連 スーパーマニホールド サブASSY"]
[null,"8","ﾀｲﾛｯﾄﾞ2連　ｽｰﾊﾟｰM","2611-1308-0000",null,8,"タイロッド8連","2611-1314-0000",null,null,null,null,null,null,null,null,null,8,"FS-10C","2201-1410-9000",null,"2201-1410-9000","2201-1910-9000",null,8,"8連","2601-1306-0800","8連 スーパーマニホールド サブASSY"]
[null,"9","ﾀｲﾛｯﾄﾞ3連　ｽｰﾊﾟｰM","2611-1309-0000",null,9,"タイロッド9連","2611-1315-0000",null,null,null,null,null,null,null,null,null,9,"FS-30C","2201-1430-9000",null,"2201-1430-9000","2201-1930-9000",null,9,"9連","2601-1306-0900","9連 スーパーマニホールド サブASSY"]
[null,"10","ﾀｲﾛｯﾄﾞ4連　ｽｰﾊﾟｰM","2611-1310-0000",null,10,"タイロッド10連","2611-1316-0000",null,null,null,null,null,null,null,null,null,10,"FS-3AR","2201-1203-9000",null,"2201-1203-9000","2201-1703-9000",null,10,"10連","2601-1306-1000","10連 スーパーマニホールド サブASSY"]
[null,"11","ﾀｲﾛｯﾄﾞ5連　ｽｰﾊﾟｰM","2611-1311-0000",null,11,"タイロッド11連","2611-1317-0000",null,null,null,null,null,null,null,null,null,11,"FS-10AR","2201-1210-9000",null,"2201-1210-9000","2201-1710-9000"]
[null,"12","ﾀｲﾛｯﾄﾞ6連　ｽｰﾊﾟｰM","2611-1312-0000",null,12,"タイロッド12連","2611-1318-0000",null,null,null,null,null,null,null,null,null,12,"FS-30AR","2201-1230-9000",null,"2201-1230-9000","2201-1730-9000"]
[null,"13","ﾀｲﾛｯﾄﾞ7連　ｽｰﾊﾟｰM","2611-1313-0000",null,null,null,null,null,null,null,null,null,null,null,null,null,13,"KSL-5L","2301-1*05-9000"]
[null,"14","ﾀｲﾛｯﾄﾞ8連　ｽｰﾊﾟｰM","2611-1314-0000",null,null,null,null,null,null,null,null,null,null,null,null,null,14,"KSL-10L","2301-1*10-9000"]
[null,"15","ﾀｲﾛｯﾄﾞ9連　ｽｰﾊﾟｰM","2611-1315-0000",null,null,null,null,null,null,null,null,null,null,null,null,null,15,"KSL-30L","2301-1*30-9000",null,null,"[カルマン表示付き]"]
[null,"16","ﾀｲﾛｯﾄﾞ10連　ｽｰﾊﾟｰM","2611-1316-0000",null,null,null,null,null,null,null,null,null,null,null,null,null,16,"KSL-50L","2301-1*50-9000",null,"１１：","KSL-アラームAA（正転）"]
[null,"17","ﾀｲﾛｯﾄﾞ11連　ｽｰﾊﾟｰM","2611-1317-0000",null,null,null,null,null,null,null,null,null,null,null,null,null,17,"KSL-5LN","2301-2*05-9000",null,"１２：","KSL-アラームAB（正転）"]
[null,"18","ﾀｲﾛｯﾄﾞ12連　ｽｰﾊﾟｰM","2611-1318-0000",null,null,null,null,null,null,null,null,null,null,null,null,null,18,"KSL-10LN","2301-2*10-9000",null,"１３：","KSL-アラームBA（正転）"]
[null,"19","ｶﾞｲﾄﾞﾊﾞｰ　ｽｰﾊﾟｰM","2611-1319-0000",null,null,null,null,null,null,null,null,null,null,null,null,null,19,"KSL-30LN","2301-2*30-9000",null,"１４：","KSL-アラームBB（正転）"]
[null,"20","Mｼﾞｮｲﾝﾄ　ｽｰﾊﾟｰM","2611-1320-0000",null,null,null,null,null,null,null,null,null,null,null,null,null,20,"KSL-50LN","2301-2*50-9000",null,null,"[カルマン表示無し]"]
[null,"21","ｱﾀﾞﾌﾟﾀﾎﾞﾝﾈｯﾄ　ｽｰﾊﾟｰM SUS","2611-1321-0000",null,null,null,null,null,null,null,null,null,null,null,null,null,21,"スルーパイプSUS","2611-1324-0000",null,"２１：","KSL-NアラームAA（正転）"]
[null,"22","ｱﾀﾞﾌﾟﾀﾊﾞﾙﾌﾞ　ｽｰﾊﾟｰM SUS","2611-1322-0000",null,null,null,null,null,null,null,null,null,null,null,null,null,22,"スルーパイプ BsBM(Niメッキ)","2611-1323-0000",null,"２２：","KSL-NアラームAB（正転）"]
[null,"23","ｽﾙｰﾊﾟｲﾌﾟB　ｽｰﾊﾟｰM","2611-1323-0000",null,null,null,null,null,null,null,null,null,null,null,null,null,23,"マニホールド ストッププラグ SUS","2611-1325-0000",null,"２３：","KSL-NアラームBA（正転）"]
[null,"24","ｽﾙｰﾊﾟｲﾌﾟS　ｽｰﾊﾟｰM","2611-1324-0000",null,null,null,null,null,null,null,null,null,null,null,null,null,24,"マニホールド ストッププラグ BsBM(Niメッキ)","2611-1325-0000",null,"２４：","KSL-NアラームBB（正転）"]
[null,"25","ｽﾄｯﾌﾟﾌﾟﾗｸﾞS　ｽｰﾊﾟｰM","2611-1325-0000",null,null,null,null,null,null,null,null,null,null,null,null,null,25,"マニホールド用 KIボールバルブ組立","2611-1142-0000"]
[null,"26","ﾃﾌﾛﾝｱﾀﾞﾌﾟﾀｰ押さえ　ｽｰﾊﾟｰM","2611-1326-0000",null,null,null,null,null,null,null,null,null,null,null,null,null,26,"VXZ2240マニホールド電磁弁組立","2721-0001-0000"]
[null,"27","ｱﾀﾞﾌﾟﾀｱｰｽ　ｽｰﾊﾟｰM","2611-1327-0000",null,null,null,null,null,null,null,null,null,null,null,null,null,27,"VXZ2242マニホールド電磁弁組立","2721-0002-0000"]
[null,"28","ｱﾀﾞﾌﾟﾀｱｰｽ2　ｽｰﾊﾟｰM","2611-1328-0000",null,null,null,null,null,null,null,null,null,null,null,null,null,28,"RSV NC","2501-2100-9000"]
[null,"29","弁体　ｽｰﾊﾟｰM","2611-1329-0000",null,null,null,null,null,null,null,null,null,null,null,null,null,29,"RSV NO","2501-2200-9000"]
[null,"30","ﾌﾞﾛｯｸ　ｽｰﾊﾟｰM　PPS","2611-1330-0000",null,null,null,null,null,null,null,null,null,null,null,null,null,30,"エアシリンダバルブ総組立図","RA3-1855"]
[null,"31","弁体　ｽｰﾊﾟｰM　ﾒﾀﾙｼｰﾙ","2611-1331-0000",null,null,null,null,null,null,null,null,null,null,null,null,null,31,"マニホールド用トマル/TOM-04M組立","RA4-2740"]
[null,"32","ｽﾄｯﾌﾟﾌﾟﾗｸﾞB　ｽｰﾊﾟｰM","2611-1332-0000"]
[]
[]
[]
[]
[]
[]
[]
[]
[null,null,null,null,null,null,null,null,null,null,null,null,null,null,null,null,null,null,"KSL-5LAA","2301-1605-9000"]
[null,null,null,null,null,null,null,null,null,null,null,null,null,null,null,null,null,null,"KSL-5LAB","2301-1705-9000"]
[null,null,null,null,null,null,null,null,null,null,null,null,null,null,null,null,null,null,"KSL-5LBA","2301-1805-9000"]
[null,null,null,null,null,null,null,null,null,null,null,null,null,null,null,null,null,null,"KSL-5LBB","2301-1905-9000"]
[null,null,null,null,null,null,null,null,null,null,null,null,null,null,null,null,null,null,"KSL-10LAA","2301-1610-9000"]
[null,null,null,null,null,null,null,null,null,null,null,null,null,null,null,null,null,null,"KSL-10LAB","2301-1710-9000"]
[null,null,null,null,null,null,null,null,null,null,null,null,null,null,null,null,null,null,"KSL-10LBA","2301-1810-9000"]
[null,null,null,null,null,null,null,null,null,null,null,null,null,null,null,null,null,null,"KSL-10LBB","2301-1910-9000"]
[null,null,null,null,null,null,null,null,null,null,null,null,null,null,null,null,null,null,"KSL-30LAA","2301-1630-9000"]
[null,null,null,null,null,null,null,null,null,null,null,null,null,null,null,null,null,null,"KSL-30LAB","2301-1730-9000"]
[null,null,null,null,null,null,null,null,null,null,null,null,null,null,null,null,null,null,"KSL-30LBA","2301-1830-9000"]
[null,null,null,null,null,null,null,null,null,null,null,null,null,null,null,null,null,null,"KSL-30LBB","2301-1930-9000"]
[null,null,null,null,null,null,null,null,null,null,null,null,null,null,null,null,null,null,"KSL-50LAA","2301-1650-9000"]
[null,null,null,null,null,null,null,null,null,null,null,null,null,null,null,null,null,null,"KSL-50LAB","2301-1750-9000"]
[null,null,null,null,null,null,null,null,null,null,null,null,null,null,null,null,null,null,"KSL-50LBA","2301-1850-9000"]
[null,null,null,null,null,null,null,null,null,null,null,null,null,null,null,null,null,null,"KSL-50LBB","2301-1950-9000"]
[null,null,null,null,null,null,null,null,null,null,null,null,null,null,null,null,null,null,"KSL-5LNAA","2301-2605-9000"]
[null,null,null,null,null,null,null,null,null,null,null,null,null,null,null,null,null,null,"KSL-5LNAB","2301-2705-9000"]
[null,null,null,null,null,null,null,null,null,null,null,null,null,null,null,null,null,null,"KSL-5LNBA","2301-2805-9000"]
[null,null,null,null,null,null,null,null,null,null,null,null,null,null,null,null,null,null,"KSL-5LNBB","2301-2905-9000"]
[null,null,null,null,null,null,null,null,null,null,null,null,null,null,null,null,null,null,"KSL-10LNAA","2301-2660-9000"]
[null,null,null,null,null,null,null,null,null,null,null,null,null,null,null,null,null,null,"KSL-10LNAB","2301-2710-9000"]
[null,null,null,null,null,null,null,null,null,null,null,null,null,null,null,null,null,null,"KSL-10LNBA","2301-2810-9000"]
[null,null,null,null,null,null,null,null,null,null,null,null,null,null,null,null,null,null,"KSL-10LNBB","2301-2910-9000"]
[null,null,null,null,null,null,null,null,null,null,null,null,null,null,null,null,null,null,"KSL-30LNAA","2301-2630-9000"]
[null,null,null,null,null,null,null,null,null,null,null,null,null,null,null,null,null,null,"KSL-30LNAB","2301-2730-9000"]
[null,null,null,null,null,null,null,null,null,null,null,null,null,null,null,null,null,null,"KSL-30LNBA","2301-2830-9000"]
[null,null,null,null,null,null,null,null,null,null,null,null,null,null,null,null,null,null,"KSL-30LNBB","2301-2930-9000"]
[null,null,null,null,null,null,null,null,null,null,null,null,null,null,null,null,null,null,"KSL-50LNAA","2301-2650-9000"]
[null,null,null,null,null,null,null,null,null,null,null,null,null,null,null,null,null,null,"KSL-50LNAB","2301-2750-9000"]
[null,null,null,null,null,null,null,null,null,null,null,null,null,null,null,null,null,null,"KSL-50LNBA","2301-2850-9000"]
[null,null,null,null,null,null,null,null,null,null,null,null,null,null,null,null,null,null,"KSL-50LNBB","2301-2950-9000"]